bitfinex/quotes_BTCUSD_20250711
["timestamp","ask_amount","ask_price","bid_price","bid_amount"]
[1752274688896,0.03499,117460.0,117450.0,0.33632]
[1752274689715,0.03499,117460.0,117450.0,0.33732]
[1752274689903,0.03499,117460.0,117450.0,0.33632]
[1752274690543,0.03499,117460.0,117450.0,0.33732]
[1752274690860,0.03499,117460.0,117450.0,0.33632]
[1752274691062,0.03358,117460.0,117450.0,0.33632]
[1752274693500,0.03499,117460.0,117450.0,0.33632]
[1752274694977,0.50264862,117460.0,117450.0,0.20404]
[1752274695189,0.50264862,117460.0,117450.0,0.33628]
[1752274697942,0.12041993,117460.0,117450.0,0.33628]
[1752274700666,0.11900993,117460.0,117450.0,0.33628]
[1752274706568,0.11702993,117460.0,117450.0,0.33628]
[1752274709020,0.4036961,117460.0,117450.0,0.33628]
[1752274711807,0.4058361,117460.0,117450.0,0.33628]
[1752274713804,0.69250227,117460.0,117450.0,0.33628]
[1752274714374,0.4058361,117460.0,117450.0,0.33628]
[1752274718810,0.1558361,117460.0,117450.0,0.33628]
[1752274718993,0.1558361,117460.0,117450.0,0.33943]
[1752274719662,0.07826766,117470.0,117450.0,0.33943]
[1752274719860,0.28666617,117460.0,117450.0,0.33943]
[1752274721153,0.16369759,117470.0,117450.0,0.33943]
[1752274721367,0.28666617,117460.0,117450.0,0.33943]
[1752274722735,0.28666617,117460.0,117450.0,0.35603]
[1752274725194,0.28666617,117460.0,117450.0,0.37465]
[1752274740948,0.78656617,117460.0,117450.0,0.37465]
[1752274743504,0.4999,117460.0,117450.0,0.37465]
[1752274743721,0.4999,117460.0,117450.0,0.94798234]
[1752274744157,0.4999,117460.0,117450.0,1.03341227]
[1752274745005,0.4999,117460.0,117450.0,0.7467461]
[1752274746071,0.57222279,117490.0,117460.0,0.0313]
[1752274746294,0.65765272,117490.0,117480.0,0.0313]
[1752274746516,0.65765272,117490.0,117480.0,0.0334]
[1752274746726,0.94431889,117490.0,117480.0,0.03642]
[1752274747688,0.66065272,117490.0,117480.0,0.03642]
[1752274748171,0.94731889,117490.0,117480.0,0.03642]
[1752274748455,0.94831889,117490.0,117480.0,0.03642]
[1752274749239,0.66165272,117490.0,117480.0,0.03642]
[1752274749425,0.66165272,117490.0,117480.0,0.32308617]
[1752274749426,0.57622279,117490.0,117480.0,0.32308617]
[1752274750016,0.57622279,117490.0,117480.0,0.03642]
[1752274751221,0.5081,117490.0,117480.0,0.03642]
[1752274751427,0.79476617,117490.0,117480.0,0.03642]
[1752274751882,0.5081,117490.0,117480.0,0.03642]
[1752274752651,0.79476617,117490.0,117480.0,0.03642]
[1752274753917,0.5081,117490.0,117480.0,0.32308617]
[1752274754857,0.5071,117490.0,117480.0,0.32308617]
[1752274755066,0.5041,117490.0,117480.0,0.03642]
[1752274755514,0.5041,117490.0,117480.0,0.32308617]
[1752274755921,0.5041,117490.0,117480.0,0.03642]
[1752274756190,0.5051,117490.0,117480.0,0.03642]
[1752274757026,0.5071,117490.0,117480.0,0.03642]
[1752274757231,0.5071,117490.0,117480.0,0.32308617]
[1752274758369,0.5051,117490.0,117480.0,0.32308617]
[1752274759161,0.5051,117490.0,117480.0,0.03642]
[1752274759162,0.0042,117490.0,117480.0,0.03642]
[1752274759404,0.0042,117490.0,117480.0,0.61188036]
[1752274759612,0.0042,117490.0,117480.0,0.69518227]
[1752274760957,0.0042,117490.0,117480.0,0.50368432]
[1752274762999,0.0042,117490.0,117480.0,0.52963353]
[1752274771333,0.0042,117490.0,117480.0,0.14779914]
[1752274771532,0.0042,117490.0,117480.0,0.66143353]
[1752274771911,0.0042,117490.0,117480.0,0.27959914]
[1752274772242,0.0042,117490.0,117480.0,0.66143353]
[1752274775943,0.0042,117490.0,117480.0,0.68694553]
[1752274777589,0.0042,117490.0,117480.0,0.89090553]
[1752274782880,0.0042,117490.0,117480.0,1.08190758]
[1752274789248,0.0042,117490.0,117480.0,0.37727114]
[1752274789455,0.0042,117490.0,117480.0,0.79548936]
[1752274790546,0.0042,117490.0,117480.0,1.08190758]
[1752274790958,0.0042,117490.0,117480.0,0.89096635]
[1752274792962,0.0042,117490.0,117480.0,0.86501714]
[1752274801976,7.73e-06,117490.0,117480.0,1.24691235]
[1752274802177,7.73e-06,117490.0,117480.0,0.86501714]
[1752274803686,7.73e-06,117490.0,117480.0,0.48312193]
[1752274803894,7.73e-06,117490.0,117480.0,0.86501714]
[1752274804747,7.73e-06,117490.0,117480.0,0.89027815]
[1752274810874,7.73e-06,117490.0,117480.0,1.0811848]
[1752274816409,7.73e-06,117490.0,117480.0,0.50838294]
[1752274816616,7.73e-06,117490.0,117480.0,1.0811848]
[1752274817445,7.73e-06,117490.0,117480.0,1.43212658]
[1752274817578,0.5023,117510.0,117500.0,0.0317]
[1752274817796,0.0024,117510.0,117500.0,0.74152186]
[1752274817975,0.0024,117510.0,117500.0,0.45512093]
[1752274820614,0.0024,117510.0,117500.0,0.16872]
[1752274820883,0.0024,117510.0,117500.0,0.45724858]
[1752274821104,0.0024,117510.0,117500.0,0.45512093]
[1752274821483,0.0024,117510.0,117500.0,0.65908093]
[1752274825700,0.0024,117510.0,117500.0,0.37268]
[1752274825925,0.0024,117510.0,117500.0,0.65908093]
[1752274826752,0.0024,117510.0,117500.0,0.37268]
[1752274826930,0.0024,117510.0,117500.0,0.65908093]
[1752274830317,0.0024,117510.0,117500.0,0.45810993]
[1752274830557,0.0024,117510.0,117500.0,1.03091179]
[1752274830803,0.0024,117510.0,117500.0,1.05641879]
[1752274836148,0.0024,117510.0,117500.0,1.03091179]
[1752274839944,0.0024,117510.0,117500.0,0.74451086]
[1752274841835,0.0024,117510.0,117500.0,0.30984993]
[1752274842060,0.0024,117510.0,117500.0,0.3356]
[1752274842061,0.28880093,117510.0,117500.0,0.3356]
[1752274842301,0.32090093,117510.0,117500.0,0.3356]
[1752274844906,0.41638804,117510.0,117500.0,0.3356]
[1752274845277,0.39988804,117510.0,117500.0,0.3356]
[1752274845903,0.38428804,117510.0,117500.0,0.3356]
[1752274846624,0.0024,117510.0,117500.0,0.3356]
[1752274847035,0.0345,117510.0,117500.0,0.3356]
[1752274847230,0.41638804,117510.0,117500.0,0.20396]
[1752274847437,0.50181797,117510.0,117500.0,0.3356]
[1752274847840,0.50181797,117510.0,117500.0,0.20396]
[1752274848249,0.50181797,117510.0,117500.0,0.3356]
[1752274848667,0.50281797,117510.0,117500.0,0.3356]
[1752274848863,0.50481797,117510.0,117500.0,0.3356]
[1752274849075,1.00371797,117510.0,117500.0,0.20396]
[1752274849287,1.34171797,117510.0,117500.0,0.20396]
[1752274849515,1.34371797,117510.0,117500.0,0.3356]
[1752274849650,1.34671797,117510.0,117500.0,0.3356]
[1752274850450,1.34671797,117510.0,117500.0,0.20396]
[1752274850661,1.34671797,117510.0,117500.0,0.3356]
[1752274854877,1.37180237,117510.0,117500.0,0.3356]
[1752274857927,1.36680237,117510.0,117500.0,0.3356]
[1752274858288,1.37180237,117510.0,117500.0,0.3356]
[1752274875885,1.33970237,117510.0,117500.0,0.3356]
[1752274876097,0.5073,117510.0,117500.0,0.37288]
[1752274876493,0.5073,117510.0,117500.0,0.75476804]
[1752274876747,0.5073,117510.0,117500.0,0.37288]
[1752274877159,0.5023,117510.0,117500.0,0.37288]
[1752274877564,0.5033,117510.0,117500.0,0.37288]
[1752274878197,0.5053,117510.0,117500.0,0.37288]
[1752274878623,0.88718804,117510.0,117500.0,0.24124]
[1752274878836,0.88718804,117510.0,117500.0,0.3728]
[1752274880695,0.5053,117510.0,117500.0,0.3728]
[1752274880866,0.88718804,117510.0,117500.0,0.3728]
[1752274884370,0.5053,117510.0,117500.0,0.3728]
[1752274888417,0.5053,117510.0,117500.0,0.75468804]
[1752274888944,0.5053,117510.0,117500.0,0.3728]
[1752274891566,0.5053,117510.0,117500.0,0.75468804]
[1752274891781,0.0054,117510.0,117500.0,0.75468804]
[1752274894832,0.0054,117510.0,117500.0,0.39719774]
[1752274895166,0.0054,117510.0,117500.0,0.77908578]
[1752274895539,0.0044,117510.0,117500.0,0.77908578]
[1752274895946,0.0044,117510.0,117500.0,0.78008578]
[1752274896355,0.0024,117510.0,117500.0,0.86551571]
[1752274896556,0.5003,117520.0,117510.0,0.0309]
[1752274896840,0.5003,117520.0,117510.0,0.42003551]
[1752274897040,0.5003,117520.0,117510.0,0.41790804]
[1752274897717,0.5003,117520.0,117510.0,0.03602]
[1752274897920,0.5003,117520.0,117510.0,0.03814747]
[1752274898133,0.5003,117520.0,117510.0,0.42003551]
[1752274898329,0.5003,117520.0,117510.0,0.41790804]
[1752274910487,0.5003,117520.0,117510.0,0.03602]
[1752274910952,0.5003,117520.0,117510.0,0.16746]
[1752274914318,0.5003,117520.0,117510.0,0.37138]
[1752274923172,0.5003,117520.0,117510.0,0.33532]
[1752274923430,0.88218804,117520.0,117510.0,0.33532]
[1752274924300,0.38228804,117520.0,117510.0,0.33532]
[1752274924533,0.0004,117520.0,117510.0,0.33532]
[1752274928852,0.0004,117520.0,117510.0,0.33837]
[1752274930068,0.0004,117520.0,117510.0,0.35477]
[1752274933103,0.0004,117520.0,117510.0,0.35679]
[1752274933333,0.0004,117520.0,117510.0,0.37229]
[1752274944081,8.267e-05,117520.0,117510.0,0.75417804]
[1752274945198,8.267e-05,117520.0,117510.0,0.75717804]
[1752274946467,8.267e-05,117520.0,117510.0,0.37529]
[1752274946666,8.267e-05,117520.0,117510.0,0.75717804]
[1752274947548,8.267e-05,117520.0,117510.0,0.37529]
[1752274947752,8.267e-05,117520.0,117510.0,0.75717804]
[1752274953200,8.267e-05,117520.0,117510.0,0.71120797]
[1752274953417,8.267e-05,117520.0,117510.0,0.84248797]
[1752274954011,1.826e-05,117520.0,117510.0,0.84248797]
[1752274955638,0.0022,117530.0,117520.0,0.0318]
[1752274955842,0.0022,117530.0,117520.0,0.54904533]
[1752274956167,0.0022,117530.0,117520.0,0.54991804]
[1752274956378,0.0022,117530.0,117520.0,0.57542204]
[1752274961192,0.0022,117530.0,117520.0,0.193534]
[1752274961402,0.0022,117530.0,117520.0,0.57542204]
[1752274964034,0.00053129,117530.0,117520.0,0.57542204]
[1752274964774,0.00053129,117530.0,117520.0,0.76593686]
[1752274967212,0.00053129,117530.0,117520.0,0.193534]
[1752274967429,0.00053129,117530.0,117520.0,0.76593686]
[1752274971296,0.00053129,117530.0,117520.0,0.76893686]
[1752274974453,0.28673272,117530.0,117520.0,0.065254]
[1752274974667,0.35485551,117530.0,117520.0,0.1342]
[1752274974920,0.38675551,117530.0,117520.0,0.1342]
[1752274975358,0.38675551,117530.0,117520.0,0.003]
[1752274975360,0.47218544,117530.0,117520.0,0.1342]
[1752274976123,0.47218544,117530.0,117520.0,0.1332]
[1752274977042,0.56781706,117530.0,117520.0,0.1332]
[1752274978298,0.56781706,117530.0,117520.0,0.1312]
[1752274978926,0.11786122,117530.0,117520.0,0.1312]
[1752274979139,0.49969427,117530.0,117520.0,0.1312]
[1752274979354,0.11786122,117530.0,117520.0,0.1312]
[1752274979565,0.08596122,117530.0,117520.0,0.1312]
[1752274979971,0.00053129,117530.0,117520.0,0.13441]
[1752274983008,0.00053129,117530.0,117520.0,0.15149]
[1752274983224,0.00053129,117530.0,117520.0,0.16719]
[1752274984205,0.00053129,117530.0,117520.0,0.15149]
[1752274984447,0.00053129,117530.0,117520.0,0.13649]
[1752274990037,0.00053129,117530.0,117520.0,0.15209]
[1752274999017,0.28684616,117530.0,117520.0,0.15209]
[1752275001517,0.28684616,117530.0,117520.0,0.35601]
[1752275001917,0.00053129,117530.0,117520.0,0.35593]
[1752275002145,0.28684616,117530.0,117520.0,0.35593]
[1752275002348,0.28684616,117530.0,117520.0,0.37133]
[1752275004654,0.00053129,117530.0,117520.0,0.37133]
[1752275004851,0.00053129,117530.0,117520.0,0.65764487]
[1752275005073,0.28684616,117530.0,117520.0,0.37133]
[1752275011313,0.30138701,117530.0,117520.0,0.37133]
[1752275012500,0.30138701,117530.0,117520.0,0.37129]
[1752275017825,0.01507214,117530.0,117520.0,0.37129]
[1752275018034,0.30138701,117530.0,117520.0,0.37129]
[1752275019859,0.01507214,117530.0,117520.0,0.37129]
[1752275020274,0.01507214,117530.0,117520.0,0.65760487]
[1752275020699,0.01507214,117530.0,117520.0,0.37129]
[1752275021145,0.62651487,117540.0,117530.0,0.03]
[1752275021358,0.62651487,117540.0,117530.0,0.03518]
[1752275021562,0.91282974,117540.0,117530.0,0.03518]
[1752275022283,0.3412,117540.0,117530.0,0.03518]
[1752275022486,0.91482974,117540.0,117530.0,0.03518]
[1752275023117,0.01674085,117540.0,117530.0,0.03518]
[1752275023562,0.58937059,117540.0,117530.0,0.03518]
[1752275024261,0.58837059,117540.0,117530.0,0.03518]
[1752275024867,0.58737059,117540.0,117530.0,0.03518]
[1752275030691,0.58737059,117540.0,117520.0,0.263234]
[1752275030692,0.01454085,117530.0,117520.0,0.263234]
[1752275030918,0.58717059,117530.0,117520.0,0.37085]
[1752275031133,0.57262974,117530.0,117520.0,0.23985]
[1752275031342,0.57262974,117530.0,117520.0,0.37085]
[1752275031945,0.57262974,117530.0,117520.0,0.35373]
[1752275032473,0.57262974,117530.0,117520.0,0.35573]
[1752275032787,0.57262974,117530.0,117520.0,0.22573]
[1752275033004,0.58717059,117530.0,117520.0,0.35673]
[1752275033630,0.58717059,117530.0,117520.0,0.37173]
[1752275034781,0.58717059,117530.0,117520.0,0.37385]
[1752275039823,0.58717059,117530.0,117520.0,0.24285]
[1752275040023,1.39893818,117530.0,117520.0,0.33792]
[1752275040810,1.39893818,117530.0,117520.0,0.33692]
[1752275041257,1.39993818,117530.0,117520.0,0.33692]
[1752275041413,0.47287078,117530.0,117520.0,0.33692]
[1752275041590,1.04550052,117530.0,117520.0,0.33692]
[1752275042797,1.23669678,117530.0,117520.0,0.33492]
[1752275043006,1.23769678,117530.0,117520.0,0.33492]
[1752275048975,0.85578378,117530.0,117520.0,0.33492]
[1752275050128,1.23769678,117530.0,117520.0,0.33492]
[1752275051094,1.20579678,117530.0,117520.0,0.33492]
[1752275053794,1.20579678,117530.0,117520.0,0.35393]
[1752275053988,0.82388378,117530.0,117520.0,0.35393]
[1752275054213,0.82388378,117530.0,117520.0,0.23602]
[1752275054385,1.23719678,117530.0,117520.0,0.33488]
[1752275054609,1.20579678,117530.0,117520.0,0.33488]
[1752275056470,0.82388378,117530.0,117520.0,0.35402]
[1752275056673,0.39845385,117530.0,117520.0,0.37224]
[1752275057015,0.73845385,117530.0,117520.0,0.37224]
[1752275063001,0.35654085,117530.0,117520.0,0.37224]
[1752275063221,0.002,117530.0,117520.0,0.37224]
[1752275063429,0.39845385,117530.0,117520.0,0.37224]
[1752275064339,0.01454085,117530.0,117520.0,0.37224]
[1752275064541,0.39645385,117530.0,117520.0,0.37224]
[1752275066084,0.01454085,117530.0,117520.0,0.37224]
[1752275066287,0.39645385,117530.0,117520.0,0.37224]
[1752275066485,0.01454085,117530.0,117520.0,0.37224]
[1752275066691,0.39645385,117530.0,117520.0,0.37224]
[1752275067934,0.39645385,117530.0,117520.0,0.37424]
[1752275069538,0.01454085,117530.0,117520.0,0.37424]
[1752275069789,0.39645385,117530.0,117520.0,0.37424]
[1752275069937,0.01454085,117530.0,117520.0,0.37424]
[1752275070152,0.39645385,117530.0,117520.0,0.37424]
[1752275079132,0.39645385,117530.0,117520.0,0.24328]
[1752275079368,1.18648964,117530.0,117520.0,0.33684]
[1752275080429,1.11836685,117530.0,117520.0,0.33684]
[1752275081253,1.11836685,117530.0,117520.0,0.33998]
[1752275081461,0.73645385,117530.0,117520.0,0.37198]
[1752275082277,0.73645385,117530.0,117520.0,0.37396]
[1752275083499,0.39645385,117530.0,117520.0,0.37396]
[1752275085939,0.01454085,117530.0,117520.0,0.37396]
[1752275086226,0.381913,117530.0,117520.0,0.37396]
[1752275086462,0.381913,117530.0,117520.0,0.37276]
[1752275086693,0.0002,117540.0,117530.0,0.0308]
[1752275086913,0.722113,117540.0,117530.0,0.03599]
[1752275087823,0.723113,117540.0,117530.0,0.03599]
[1752275088248,0.73765385,117540.0,117530.0,0.03599]
[1752275089571,0.73865385,117540.0,117530.0,0.03599]
[1752275095904,0.73865385,117540.0,117530.0,0.01861]
[1752275096919,0.73865385,117540.0,117530.0,0.03718]
[1752275099534,0.73865385,117540.0,117530.0,0.01861]
[1752275099816,0.73865385,117540.0,117530.0,0.0154]
[1752275100032,0.01454085,117530.0,117520.0,0.23803]
[1752275100246,0.763826,117530.0,117520.0,0.36891]
[1752275100467,1.22075593,117530.0,117520.0,0.3348]
[1752275101117,1.20535593,117530.0,117520.0,0.3348]
[1752275102275,1.21989678,117530.0,117520.0,0.3348]
[1752275102501,1.20379678,117530.0,117520.0,0.3358]
[1752275104845,0.82188378,117530.0,117520.0,0.37001]
[1752275106115,0.73645385,117530.0,117520.0,0.37218]
[1752275106320,0.721913,117530.0,117520.0,0.37218]
[1752275107142,0.73645385,117530.0,117520.0,0.37218]
[1752275108180,0.35454085,117530.0,117520.0,0.37218]
[1752275108394,0.73645385,117530.0,117520.0,0.37218]
[1752275108801,0.35454085,117530.0,117520.0,0.37218]
[1752275109008,0.73645385,117530.0,117520.0,0.37218]
[1752275110189,0.39645385,117530.0,117520.0,0.37218]
[1752275113485,0.98285385,117530.0,117520.0,0.37218]
[1752275120176,0.96904763,117530.0,117520.0,0.37218]
[1752275121545,1.308313,117530.0,117520.0,0.37218]
[1752275122255,1.32285385,117530.0,117520.0,0.37218]
[1752275130237,1.30904785,117530.0,117520.0,0.37218]
[1752275139403,0.58713485,117530.0,117520.0,0.37218]
[1752275140883,0.96904785,117530.0,117520.0,0.37218]
[1752275143119,0.58713485,117530.0,117520.0,0.37218]
[1752275143325,0.96904785,117530.0,117520.0,0.37218]
[1752275150669,0.95524237,117530.0,117520.0,0.37218]
[1752275156261,0.95524237,117530.0,117520.0,0.23913]
[1752275156479,1.33715537,117530.0,117520.0,0.33572]
[1752275156710,0.95524237,117530.0,117520.0,0.33572]
[1752275158924,0.95524237,117530.0,117520.0,0.35082]
[1752275159348,0.95524237,117530.0,117520.0,0.35391]
[1752275159551,0.95524237,117530.0,117520.0,0.36951]
[1752275160483,0.95524237,117530.0,117520.0,0.37163]
[1752275160684,0.94143722,117530.0,117520.0,0.37163]
[1752275167177,0.55952422,117530.0,117520.0,0.37163]
[1752275167389,0.94143722,117530.0,117520.0,0.37163]
[1752275167817,0.55952422,117530.0,117520.0,0.37163]
[1752275167997,0.94143722,117530.0,117520.0,0.37163]
[1752275173165,0.55952422,117530.0,117520.0,0.37163]
[1752275173322,0.94143722,117530.0,117520.0,0.37163]
[1752275173735,0.92763153,117530.0,117520.0,0.37163]
[1752275175401,0.54571853,117530.0,117520.0,0.37163]
[1752275175607,0.92763153,117530.0,117520.0,0.37163]
[1752275178863,0.83203459,117530.0,117520.0,0.37163]
[1752275182330,1.45835065,117530.0,117520.0,0.37163]
[1752275183910,1.4438098,117530.0,117520.0,0.37163]
[1752275186245,1.4438098,117530.0,117520.0,0.37167]
[1752275187485,1.15749374,117530.0,117520.0,0.37167]
[1752275190178,1.4438098,117530.0,117520.0,0.37167]
[1752275192111,1.15749374,117530.0,117520.0,0.37167]
[1752275193164,0.53117768,117530.0,117520.0,0.45709993]
[1752275193588,0.81749374,117530.0,117520.0,0.45709993]
[1752275194024,0.80729946,117530.0,117520.0,0.45709993]
[1752275194242,0.7879732,117530.0,117520.0,0.45609993]
[1752275194646,0.7879732,117530.0,117520.0,0.45909993]
[1752275194873,0.77416873,117530.0,117520.0,0.45909993]
[1752275197609,1.06048479,117530.0,117520.0,0.45909993]
[1752275198912,0.77416873,117530.0,117520.0,0.45909993]
[1752275199784,0.48785267,117530.0,117520.0,0.45909993]
[1752275200200,0.77416873,117530.0,117520.0,0.45909993]
[1752275200680,0.48785267,117530.0,117520.0,0.45909993]
[1752275200900,0.77416873,117530.0,117520.0,0.45909993]
[1752275201318,0.48785267,117530.0,117520.0,0.45909993]
[1752275201524,0.77416873,117530.0,117520.0,0.45909993]
[1752275204903,0.76036424,117530.0,117520.0,0.45909993]
[1752275208169,0.76036424,117530.0,117520.0,0.32777787]
[1752275208721,0.47404818,117530.0,117520.0,0.32777787]
[1752275209121,0.76036424,117530.0,117520.0,0.32777787]
[1752275209320,0.76036424,117530.0,117520.0,0.45837787]
[1752275211178,0.47404818,117530.0,117520.0,0.45837787]
[1752275211427,0.76036424,117530.0,117520.0,0.45837787]
[1752275214132,0.47404818,117530.0,117520.0,0.45837787]
[1752275214333,0.76036424,117530.0,117520.0,0.45837787]
[1752275216125,0.47404818,117530.0,117520.0,0.45837787]
[1752275216369,0.75017013,117530.0,117520.0,0.45837787]
[1752275216937,0.46385407,117530.0,117520.0,0.45837787]
[1752275217141,0.44452809,117530.0,117520.0,0.74469393]
[1752275218095,0.44452809,117530.0,117520.0,0.74369393]
[1752275218786,0.44452809,117530.0,117520.0,0.74169393]
[1752275218987,0.44452809,117530.0,117520.0,0.74369393]
[1752275219189,0.44452809,117530.0,117520.0,0.74669393]
[1752275219393,0.44452809,117530.0,117520.0,0.46037787]
[1752275219572,0.44452809,117530.0,117520.0,0.74669393]
[1752275219769,0.44452809,117530.0,117520.0,0.46037787]
[1752275219989,0.44452809,117530.0,117520.0,0.74669393]
[1752275220187,0.44452809,117530.0,117520.0,0.46037787]
[1752275220849,0.73084415,117530.0,117520.0,0.46037787]
[1752275225179,0.71151957,117530.0,117520.0,0.46037787]
[1752275226434,0.42520351,117530.0,117520.0,0.46037787]
[1752275227346,0.41501033,117530.0,117520.0,0.46037787]
[1752275229139,0.41501033,117530.0,117520.0,0.46041787]
[1752275231090,0.41501033,117530.0,117520.0,0.74673393]
[1752275231357,0.41501033,117530.0,117520.0,0.46041787]
[1752275232929,0.41501033,117530.0,117520.0,0.74673393]
[1752275233292,0.39568575,117530.0,117520.0,0.74673393]
[1752275235247,0.39568575,117530.0,117520.0,0.46041787]
[1752275235453,0.39568575,117530.0,117520.0,0.74673393]
[1752275237194,0.38549267,117530.0,117520.0,0.74673393]
[1752275240723,0.38549267,117530.0,117520.0,0.46041787]
[1752275241008,0.38549267,117530.0,117520.0,0.74673393]
[1752275241179,0.36616829,117530.0,117520.0,0.74673393]
[1752275242188,0.36616829,117530.0,117520.0,0.46041787]
[1752275242393,0.36616829,117530.0,117520.0,0.74673393]
[1752275243938,0.36616829,117530.0,117520.0,0.46041787]
[1752275244086,0.36616829,117530.0,117520.0,0.74673393]
[1752275246572,0.36616829,117530.0,117520.0,0.46041787]
[1752275246872,0.36616829,117530.0,117520.0,0.74673393]
[1752275247291,0.35597545,117530.0,117520.0,0.46041787]
[1752275247502,0.35597545,117530.0,117520.0,0.74673393]
[1752275247901,0.35597545,117530.0,117520.0,0.46041787]
[1752275248084,0.64229151,117530.0,117520.0,0.46041787]
[1752275248471,0.35597545,117530.0,117520.0,0.46041787]
[1752275249402,0.33665102,117530.0,117520.0,0.46041787]
[1752275250555,0.33665102,117530.0,117520.0,0.74673393]
[1752275250977,0.33665102,117530.0,117520.0,0.46041787]
[1752275251622,0.62296708,117530.0,117520.0,0.46041787]
[1752275251968,0.33665102,117530.0,117520.0,0.46041787]
[1752275252204,0.62296708,117530.0,117520.0,0.46041787]
[1752275253351,0.62296708,117530.0,117520.0,0.46133787]
[1752275253722,0.62296708,117530.0,117520.0,0.32981787]
[1752275253933,0.90928314,117530.0,117520.0,0.29438993]
[1752275254139,0.94088314,117530.0,117520.0,0.3404]
[1752275255774,0.94088314,117530.0,117520.0,0.20892]
[1752275255978,0.94088314,117530.0,117520.0,0.34036]
[1752275256821,0.94088314,117530.0,117520.0,0.20892]
[1752275257028,1.58174005,117530.0,117520.0,0.3404]
[1752275257241,1.29542399,117530.0,117520.0,0.3404]
[1752275257985,1.29542399,117530.0,117520.0,0.3354]
[1752275258208,1.29542399,117530.0,117520.0,0.3364]
[1752275258417,1.29542399,117530.0,117520.0,0.3374]
[1752275258873,1.29542399,117530.0,117520.0,0.20592]
[1752275259024,1.58174005,117530.0,117520.0,0.3374]
[1752275259224,1.29542399,117530.0,117520.0,0.3374]
[1752275260714,1.29542399,117530.0,117520.0,0.3364]
[1752275261406,1.29542399,117530.0,117520.0,0.3354]
[1752275261407,1.66716998,117530.0,117520.0,0.3354]
[1752275262236,1.66816998,117530.0,117520.0,0.3354]
[1752275263316,1.38185392,117530.0,117520.0,0.3354]
[1752275275192,1.40687855,117530.0,117520.0,0.3354]
[1752275275393,1.40687855,117530.0,117520.0,0.20392]
[1752275275602,1.40687855,117530.0,117520.0,0.33516]
[1752275279027,0.80264643,117530.0,117520.0,0.33516]
[1752275279238,1.26482399,117530.0,117520.0,0.33516]
[1752275279436,1.26482399,117530.0,117520.0,0.33504]
[1752275280392,0.97850793,117530.0,117520.0,0.35666]
[1752275280590,0.97850793,117530.0,117520.0,0.37176]
[1752275282857,1.26482399,117530.0,117520.0,0.37176]
[1752275283057,1.26482399,117530.0,117520.0,0.35454]
[1752275284819,1.26382399,117530.0,117520.0,0.35554]
[1752275284972,1.26382399,117530.0,117520.0,0.35654]
[1752275285927,1.26382399,117530.0,117520.0,0.37284]
[1752275287166,1.26382399,117530.0,117520.0,0.37496]
[1752275298295,0.69119187,117530.0,117520.0,0.37496]
[1752275298503,1.26382399,117530.0,117520.0,0.37496]
[1752275300171,0.69119187,117530.0,117520.0,0.37496]
[1752275300385,1.26382399,117530.0,117520.0,0.37496]
[1752275306905,0.97750793,117530.0,117520.0,0.37496]
[1752275309177,0.69119187,117530.0,117520.0,0.37496]
[1752275309402,0.97750793,117530.0,117520.0,0.37496]
[1752275313186,0.69119187,117530.0,117520.0,0.37496]
[1752275313376,0.97750793,117530.0,117520.0,0.37496]
[1752275318957,0.69119187,117530.0,117520.0,0.37496]
[1752275319170,0.97750793,117530.0,117520.0,0.37496]
[1752275321041,0.69119187,117530.0,117520.0,0.37496]
[1752275321278,0.97750793,117530.0,117520.0,0.37496]
[1752275327823,0.69119187,117530.0,117520.0,0.37496]
[1752275328032,0.97750793,117530.0,117520.0,0.37496]
[1752275332236,0.69119187,117530.0,117520.0,0.37496]
[1752275332456,0.97750793,117530.0,117520.0,0.37496]
[1752275340982,0.69119187,117530.0,117520.0,0.37496]
[1752275341178,0.97750793,117530.0,117520.0,0.37496]
[1752275346629,0.96296708,117530.0,117520.0,0.37496]
[1752275353875,0.67665102,117530.0,117520.0,0.37496]
[1752275354067,0.96296708,117530.0,117520.0,0.37496]
[1752275360859,0.67665102,117530.0,117520.0,0.37496]
[1752275362172,0.96296708,117530.0,117520.0,0.37496]
[1752275367723,0.94916183,117530.0,117520.0,0.37496]
[1752275371589,1.23547789,117530.0,117520.0,0.24384]
[1752275371796,1.25001874,117530.0,117520.0,0.33644]
[1752275372005,1.28091874,117530.0,117520.0,0.33644]
[1752275373244,1.28091874,117530.0,117520.0,0.3364]
[1752275373835,1.28091874,117530.0,117520.0,0.20592]
[1752275374033,1.28091874,117530.0,117520.0,0.3364]
[1752275375328,0.67738662,117530.0,117520.0,0.3364]
[1752275375566,0.96370268,117530.0,117520.0,0.3364]
[1752275375763,0.96370268,117530.0,117520.0,0.3525]
[1752275378129,1.25001874,117530.0,117520.0,0.3364]
[1752275378456,1.23621249,117530.0,117520.0,0.3364]
[1752275379920,1.23621249,117530.0,117520.0,0.3521]
[1752275381528,0.94989643,117530.0,117520.0,0.37072]
[1752275387219,1.23621249,117530.0,117520.0,0.37072]
[1752275392579,1.22240602,117530.0,117520.0,0.37072]
[1752275393420,1.22240602,117530.0,117520.0,0.3675]
[1752275393599,1.22240602,117530.0,117520.0,0.37047]
[1752275395283,1.22240602,117530.0,117520.0,0.3726]
[1752275397132,0.92154911,117530.0,117520.0,0.3726]
[1752275397911,0.93608996,117530.0,117520.0,0.3726]
[1752275405995,1.22240602,117530.0,117520.0,0.3726]
[1752275412138,1.22240602,117530.0,117520.0,0.24212]
[1752275412283,1.22240602,117530.0,117520.0,0.37252]
[1752275425127,1.22240602,117530.0,117520.0,0.37252]
[1752275433258,0.6497739,117530.0,117520.0,0.37252]
[1752275433448,1.22240602,117530.0,117520.0,0.37252]
[1752275435329,0.93608996,117530.0,117520.0,0.37252]
[1752275438185,1.22240602,117530.0,117520.0,0.37252]
[1752275438844,1.22240602,117530.0,117520.0,0.24212]
[1752275439049,1.22240602,117530.0,117520.0,0.37248]
[1752275441081,0.6497739,117530.0,117520.0,0.37248]
[1752275441530,0.93608996,117530.0,117520.0,0.37248]
[1752275447764,1.22240602,117530.0,117520.0,0.37248]
[1752275451172,0.93608996,117530.0,117520.0,0.37248]
[1752275452348,1.22240602,117530.0,117520.0,0.37248]
[1752275453363,1.34003595,117530.0,117520.0,0.00208]
[1752275453573,0.38674085,117520.0,117510.0,0.20388]
[1752275453786,2.25818993,117520.0,117510.0,0.3342]
[1752275454009,2.25818993,117520.0,117500.0,0.20592]
[1752275454233,2.19006714,117510.0,117500.0,0.20592]